bitfinex/quotes_SOLUSD_20251030
["timestamp","ask_amount","ask_price","bid_price","bid_amount"]
[1761862857224,6.16415126,183.02,182.99,2.06829103]
[1761862857425,5.46415126,183.02,182.99,2.06829103]
[1761862857627,5.46415126,183.02,182.99,2.72829103]
[1761862857813,5.46415126,183.02,182.99,2.06829103]
[1761862858013,5.46415126,183.02,183.0,2.72829103]
[1761862858546,5.46415126,183.02,183.01,0.69]
[1761862859641,19.12156371,183.04,183.01,2.75829103]
[1761862859832,19.84156371,183.04,183.01,2.75829103]
[1761862860444,19.84156371,183.04,183.01,2.06829103]
[1761862860743,19.84156371,183.04,183.01,2.75829103]
[1761862860744,6.18328671,183.04,183.01,2.75829103]
[1761862861729,19.1195602,183.06,183.02,0.69]
[1761862861918,4.08783933,183.05,183.02,0.69]
[1761862862120,4.80783933,183.05,183.02,0.69]
[1761862863042,5.46328671,183.04,183.02,0.69]
[1761862863838,6.18328671,183.04,183.01,2.06829103]
[1761862864029,6.18328671,183.04,183.01,2.75829103]
[1761862865827,6.18328671,183.04,183.01,2.06829103]
[1761862866147,6.18328671,183.04,183.01,2.75829103]
[1761862866333,5.46328671,183.04,183.01,2.75829103]
[1761862866540,6.18328671,183.04,183.01,2.75829103]
[1761862867831,5.46328671,183.04,183.01,2.75829103]
[1761862868733,5.46328671,183.04,183.02,0.69]
[1761862869435,5.46298825,183.05,183.02,0.69]
[1761862869628,6.18298825,183.05,183.01,2.06829103]
[1761862869950,0.72,183.04,183.01,2.75829103]
[1761862870143,6.18298825,183.05,183.02,0.69]
[1761862870728,6.18298825,183.05,183.01,2.75829103]
[1761862870926,6.18298825,183.05,183.02,0.69]
[1761862871334,0.72,183.04,183.01,2.06829103]
[1761862871541,0.72,183.04,183.01,2.75829103]
[1761862872551,5.4635852,183.03,182.97,61.7]
[1761862872761,5.4635852,183.03,182.98,2.75829103]
[1761862872951,6.1835852,183.03,182.98,2.75829103]
[1761862873255,0.72,183.02,182.98,2.75829103]
[1761862873758,6.18405644,183.02,182.99,0.69]
[1761862874551,5.46405644,183.02,182.99,0.69]
[1761862875556,6.1835996,183.03,183.0,2.06829103]
[1761862875963,5.46333247,183.04,183.01,2.06829103]
[1761862876150,34.24884279,183.06,183.01,2.06829103]
[1761862876151,21.282,183.06,183.02,2.06829103]
[1761862876347,0.69,183.09,183.05,2.06829103]
[1761862876539,9.55610015,183.08,183.06,2.06829103]
[1761862876861,4.09377136,183.07,183.06,2.06829103]
[1761862877437,4.09377136,183.07,183.06,2.75829103]
[1761862877860,5.46180714,183.09,183.06,2.75829103]
[1761862877861,4.09377136,183.08,183.06,2.75829103]
[1761862878038,5.46180714,183.09,183.07,2.06829103]
[1761862878454,0.69,183.11,183.08,2.75829103]
[1761862878455,5.46120417,183.11,183.08,2.75829103]
[1761862878646,4.09310769,183.1,183.08,0.69]
[1761862878847,6.15067737,183.13,183.09,0.69]
[1761862879052,4.09294875,183.12,183.09,0.69]
[1761862879250,4.09294875,183.11,183.09,0.69]
[1761862879459,6.15067737,183.13,183.09,0.69]
[1761862879659,4.09178101,183.12,183.09,0.69]
[1761862879867,4.09178101,183.11,183.1,3.22625074]
[1761862880067,4.09178101,183.12,183.09,3.91625074]
[1761862880274,4.09178101,183.11,183.09,3.91625074]
[1761862880444,6.15067737,183.13,183.09,3.91625074]
[1761862880646,4.09018819,183.12,183.09,3.91625074]
[1761862881172,4.78018819,183.12,183.09,0.69]
[1761862881373,4.78018819,183.12,183.09,3.91625074]
[1761862881750,10.24111352,183.12,183.09,3.91625074]
[1761862882063,5.46092533,183.12,183.09,3.91625074]
[1761862882371,6.15092533,183.12,183.09,3.91625074]
[1761862882752,15.93853504,183.16,183.11,3.22625074]
[1761862882961,4.08734154,183.15,183.11,3.22625074]
[1761862883165,4.08734154,183.14,183.11,3.22625074]
[1761862883364,4.77734154,183.14,183.11,3.22625074]
[1761862883569,18.47478578,183.16,183.11,3.22625074]
[1761862883888,39.06738202,183.14,183.06,0.69]
[1761862884041,9.78882769,183.11,183.04,3.22625074]
[1761862884247,3.22625074,183.12,183.06,3.22625074]
[1761862884449,4.08605597,183.11,183.05,0.69]
[1761862884769,3.22625074,183.1,183.05,3.91625074]
[1761862885069,3.91625074,183.1,183.05,3.91625074]
[1761862885267,6.15179474,183.09,183.05,3.91625074]
[1761862887161,13.65338772,183.11,183.05,3.91625074]
[1761862887162,0.69,183.08,183.05,3.91625074]
[1761862887661,0.69,183.08,183.06,3.22625074]
[1761862888255,6.1521707,183.08,183.06,3.22625074]
[1761862889059,5.4621707,183.08,183.06,3.22625074]
[1761862889259,5.4618465,183.09,183.06,3.89625074]
[1761862889663,6.1818465,183.09,183.06,3.89625074]
[1761862894871,5.46060175,183.13,183.06,3.22625074]
[1761862895074,4.80376705,183.12,183.04,5.46328671]
[1761862895249,4.80376705,183.12,183.07,3.22625074]
[1761862895450,0.72,183.11,183.07,3.22625074]
[1761862895696,0.72,183.11,183.07,3.89625074]
[1761862895855,4.08376705,183.12,183.09,3.22625074]
[1761862896052,4.08376705,183.12,183.1,3.22625074]
[1761862896254,4.80376705,183.12,183.1,3.22625074]
[1761862896454,4.80376705,183.12,183.09,3.22625074]
[1761862896865,5.46060175,183.13,183.1,3.22625074]
[1761862897067,6.18060175,183.13,183.1,3.22625074]
[1761862897382,5.46060175,183.13,183.1,3.22625074]
[1761862897556,0.72,183.12,183.09,3.89625074]
[1761862898181,6.18113649,183.12,183.09,3.89625074]
[1761862898653,6.18059632,183.14,183.1,3.89625074]
[1761862899059,6.18059632,183.14,183.06,3.22625074]
[1761862899060,6.18059632,183.14,183.11,3.89625074]
[1761862899471,0.72,183.14,183.11,3.22625074]
[1761862899657,16.87492151,183.17,183.12,3.89625074]
[1761862899658,4.08126156,183.15,183.12,3.89625074]
[1761862899857,0.72,183.16,183.12,3.89625074]
[1761862900084,4.80114798,183.16,183.13,3.22625074]
[1761862900598,0.72,183.15,183.13,3.22625074]
[1761862901581,6.18006318,183.15,183.13,3.22625074]
[1761862903977,5.46006318,183.15,183.12,3.22625074]
[1761862904194,6.18006318,183.15,183.11,3.22625074]
[1761862904600,6.18006318,183.15,183.12,3.22625074]
[1761862905216,0.72,183.14,183.12,3.22625074]
[1761862905717,6.18057173,183.14,183.12,3.22625074]
[1761862906216,0.72,183.13,183.09,72.62390787]
[1761862906417,0.72,183.13,183.11,3.22625074]
[1761862907113,3.22625074,183.12,183.09,5.46218875]
[1761862907326,3.22625074,183.1,183.03,0.67]
[1761862907610,8.68834381,183.08,183.04,0.67]
[1761862907808,3.22625074,183.07,183.04,0.67]
[1761862907991,3.94625074,183.07,183.02,0.67]
[1761862908190,3.94625074,183.06,183.02,0.67]
[1761862908712,0.72,183.05,183.0,3.89625074]
[1761862909012,0.72,183.05,183.0,9.35682247]
[1761862909374,3.94625074,183.05,183.0,6.13057173]
[1761862909696,5.4635852,183.03,183.0,0.67]
[1761862911585,6.18331222,183.04,183.0,3.89625074]
[1761862911991,5.46302779,183.05,183.01,3.89625074]
[1761862912188,5.4627254,183.06,183.03,3.22625074]
[1761862912613,5.4627254,183.06,183.03,3.89625074]
[1761862912813,6.1827254,183.06,183.02,3.89625074]
[1761862913109,6.1827254,183.06,183.02,0.67]
[1761862913307,0.72,183.05,183.02,0.67]
[1761862913679,5.46328671,183.04,182.99,21.89540571]
[1761862913880,6.18303467,183.05,183.0,3.89625074]
[1761862914189,0.72,183.05,183.01,3.22625074]
[1761862914377,0.72,183.05,183.01,3.89625074]
[1761862914712,0.72,183.05,183.01,0.67]
[1761862915278,6.18304126,183.05,182.99,61.7]
[1761862915516,6.18304126,183.05,183.01,0.67]
[1761862917614,37.47423265,183.07,182.99,61.7]
[1761862917615,3.94625074,183.04,182.99,61.7]
[1761862917805,3.94625074,183.03,182.99,61.7]
[1761862918184,3.22625074,183.03,182.99,61.7]
[1761862918390,0.72,183.02,182.99,61.7]
[1761862918695,0.72,183.02,182.98,65.59625074]
[1761862918896,0.72,183.02,182.98,64.92625074]
[1761862919494,5.46418228,183.01,182.98,61.7]
[1761862919911,6.16418228,183.01,182.98,61.7]
[1761862921181,6.16418228,183.01,182.98,62.4]
[1761862921386,5.46392629,183.02,182.98,65.62625074]
[1761862921699,0.7,183.11,183.01,23.81825074]
[1761862921882,0.7,183.1,183.08,3.22625074]
[1761862922087,0.7,183.1,183.07,3.22625074]
[1761862922814,4.78091781,183.1,183.05,3.22625074]
[1761862923013,4.08091781,183.1,183.07,3.22625074]
[1761862923197,5.46123087,183.11,183.08,3.22625074]
[1761862923511,0.7,183.12,183.06,5.39303723]
[1761862923512,5.46097054,183.12,183.09,3.22625074]
[1761862923910,6.16097054,183.12,183.09,3.22625074]
[1761862925011,6.16007643,183.15,183.11,3.22625074]
[1761862925194,5.46007643,183.15,183.12,3.92625074]
[1761862925396,5.46007643,183.15,183.08,6.16228922]
[1761862925397,0.7,183.14,183.08,6.16228922]
[1761862925584,0.7,183.14,183.1,3.22625074]
[1761862925585,5.46060175,183.13,183.1,3.22625074]
[1761862925993,5.46060175,183.13,183.11,3.22625074]
[1761862926404,0.7,183.14,183.11,3.22625074]
[1761862926604,5.45974817,183.16,183.12,3.92625074]
[1761862926790,5.45974817,183.16,183.13,3.22625074]
[1761862927001,5.45974817,183.16,183.14,3.22625074]
[1761862927604,6.15974817,183.16,183.14,3.22625074]
[1761862928114,5.45943099,183.17,183.15,3.22625074]
[1761862928301,6.25912324,183.18,183.15,3.22625074]
[1761862929191,6.15950279,183.17,183.15,3.22625074]
[1761862929392,5.45950279,183.17,183.15,3.22625074]
[1761862929587,0.1,183.18,183.15,3.92625074]
[1761862929806,0.1,183.18,183.16,3.22625074]
[1761862930407,0.1,183.18,183.16,3.92625074]
[1761862930600,0.1,183.18,183.17,3.92625074]
[1761862930797,0.1,183.18,183.17,3.22625074]
[1761862931206,0.1,183.18,183.16,3.22625074]
[1761862931612,0.1,183.18,183.17,3.92625074]
[1761862932213,0.1,183.21,183.17,3.92625074]
[1761862932496,0.1,183.21,183.18,0.7]
[1761862932699,0.1,183.21,183.2,3.22625074]
[1761862933110,0.1,183.21,183.2,3.92625074]
[1761862933499,0.1,183.21,183.2,9.38476602]
[1761862933694,0.1,183.21,183.2,14.84119766]
[1761862935502,0.1,183.21,183.2,24.63002535]
[1761862936414,0.1,183.21,183.2,45.22202535]
[1761862936727,6.1649506,183.32,183.21,9.78882769]
[1761862936910,26.7569506,183.32,183.28,3.22625074]
[1761862937105,26.0469506,183.32,183.27,3.22625074]
[1761862937408,5.45553737,183.3,183.26,3.22625074]
[1761862937616,5.45553737,183.3,183.25,3.22625074]
[1761862937838,0.71,183.29,183.25,3.22625074]
[1761862938331,0.71,183.29,183.24,3.22625074]
[1761862939331,5.45613269,183.28,183.24,3.22625074]
[1761862939743,6.16613269,183.28,183.24,3.22625074]
[1761862940037,0.71,183.28,183.24,3.90625074]
[1761862940203,6.16551636,183.31,183.26,3.22625074]
[1761862940604,0.71,183.3,183.26,3.90625074]
[1761862940800,3.93625074,183.3,183.23,0.68]
[1761862941004,0.71,183.3,183.25,3.22625074]
[1761862941238,0.71,183.29,183.24,3.22625074]
[1761862941424,0.71,183.29,183.23,0.68]
[1761862941425,5.45613269,183.28,183.23,0.68]
[1761862941625,5.45613269,183.28,183.24,2.06165529]
[1761862941931,6.16613269,183.28,183.24,2.06165529]
[1761862942317,0.71,183.27,183.23,2.06165529]
[1761862942529,0.71,183.27,183.24,2.06165529]
[1761862943138,0.71,183.27,183.21,14.31809939]
[1761862943139,0.71,183.27,183.23,2.06165529]
[1761862943306,0.71,183.27,183.22,2.06165529]
[1761862943505,5.45672814,183.26,183.22,2.74165529]
[1761862943717,5.45672814,183.26,183.23,2.74165529]
[1761862943925,6.16672814,183.26,183.23,2.06165529]
[1761862944337,0.71,183.25,183.22,63.76165529]
[1761862944843,5.45672814,183.26,183.22,64.44165529]
[1761862945006,6.16672814,183.26,183.23,2.06165529]
[1761862945918,5.45672814,183.26,183.22,61.7]
[1761862946153,2.06165529,183.23,183.17,2.74165529]
[1761862946317,0.71,183.25,183.2,2.06165529]
[1761862946511,0.71,183.25,183.21,2.06165529]
[1761862946709,0.71,183.25,183.22,2.06165529]
[1761862946911,5.45672814,183.26,183.22,2.06165529]
[1761862947214,6.16672814,183.26,183.22,2.06165529]
[1761862948549,2.06165529,183.28,183.22,2.06165529]
[1761862948550,5.45613939,183.28,183.23,2.06165529]
[1761862948713,5.45553737,183.3,183.24,2.06165529]
[1761862948913,19.09438079,183.3,183.24,2.06165529]
[1761862949114,0.68,183.29,183.24,2.06165529]
[1761862949418,2.74165529,183.29,183.24,2.06165529]
[1761862949925,21.83811971,183.28,183.2,83.5702751]
[1761862950123,2.06165529,183.26,183.2,2.06165529]
[1761862950535,0.68,183.25,183.2,2.06165529]
[1761862951165,0.68,183.25,183.2,2.76165529]
[1761862951335,0.68,183.25,183.18,2.06165529]
[1761862951336,2.06165529,183.24,183.18,2.06165529]
[1761862951710,0.68,183.23,183.18,2.06165529]
[1761862951915,6.13696499,183.26,183.2,2.06165529]
[1761862952438,5.45645618,183.27,183.23,2.06165529]
[1761862952619,6.13621168,183.28,183.24,2.06165529]
[1761862953117,5.45621168,183.28,183.25,2.06165529]
[1761862953719,5.45583501,183.29,183.25,2.06165529]
[1761862953920,6.13583501,183.29,183.25,2.06165529]
[1761862954225,0.68,183.29,183.25,2.06165529]
[1761862955220,0.68,183.29,183.24,2.06165529]
[1761862955829,5.45613269,183.28,183.24,2.76165529]
[1761862956236,6.13613269,183.28,183.25,2.06165529]
[1761862956813,0.68,183.27,183.22,2.06165529]
[1761862957020,0.68,183.27,183.2,6.1575746]
[1761862957021,8.19751049,183.29,183.24,2.06165529]
[1761862957324,6.1358552,183.29,183.24,2.06165529]
[1761862957533,0.68,183.28,183.24,2.06165529]
[1761862957946,13.63884342,183.3,183.25,2.06165529]
[1761862958248,13.63884342,183.3,183.25,2.76165529]
[1761862958428,20.592,183.31,183.27,2.06165529]
[1761862958653,0.68,183.3,183.27,2.06165529]
[1761862959134,37.34094856,183.34,183.29,2.06165529]
[1761862959349,6.13470164,183.33,183.28,2.76165529]
[1761862959527,6.13470164,183.33,183.28,2.06165529]
[1761862959731,2.06165529,183.29,183.24,61.7]
[1761862960042,5.4564304,183.27,183.24,61.7]
[1761862960345,5.4564304,183.27,183.21,0.7]
[1761862960539,5.4564304,183.27,183.21,2.76165529]
[1761862960540,0.68,183.26,183.21,2.76165529]
[1761862960920,0.68,183.26,183.21,2.06165529]
[1761862961218,0.68,183.26,183.2,67.15824074]
[1761862961219,0.68,183.26,183.22,2.76165529]
[1761862962144,5.45702592,183.25,183.22,2.06165529]
[1761862962547,6.13702592,183.25,183.22,2.06165529]
[1761862962960,13.641076,183.27,183.2,6.15824074]
[1761862962961,7.51842406,183.26,183.2,8.21989603]
[1761862963126,0.68,183.25,183.2,8.21989603]
[1761862964155,6.1372807,183.25,183.2,8.21989603]
[1761862964354,6.1372807,183.25,183.2,2.76165529]
[1761862964664,0.68,183.24,183.2,2.76165529]
[1761862964843,0.68,183.24,183.2,8.22013744]
[1761862965037,8.19845704,183.26,183.2,8.22013744]
[1761862965237,0.68,183.25,183.2,8.22013744]
[1761862965544,0.68,183.25,183.2,2.76165529]
[1761862965733,0.68,183.25,183.21,0.7]
[1761862965933,0.68,183.25,183.21,2.76165529]
[1761862966261,0.68,183.25,183.21,8.2198412]
[1761862966753,0.68,183.25,183.21,0.7]
[1761862966754,6.13705292,183.25,183.21,0.7]
[1761862966938,6.13705292,183.25,183.21,2.76165529]
[1761862968241,0.68,183.24,183.2,8.21990481]
[1761862968431,6.13705292,183.25,183.21,2.76165529]
[1761862969726,0.68,183.24,183.2,5.45824952]
[1761862970040,0.68,183.24,183.2,8.21990481]
[1761862970425,4.75793339,183.24,183.2,8.21990481]
[1761862970651,4.75793339,183.24,183.2,7.51990481]
[1761862970837,0.68,183.24,183.2,8.21990481]
[1761862971034,5.45671877,183.27,183.2,7.51990481]
[1761862971346,4.75779143,183.26,183.21,2.76165529]
[1761862971662,4.07779143,183.25,183.21,2.76165529]
[1761862971846,4.75779143,183.25,183.2,7.51990481]
[1761862972037,4.75779143,183.24,183.2,7.51990481]
[1761862972355,4.07779143,183.24,183.21,2.76165529]
[1761862972555,6.13675976,183.26,183.22,2.06165529]
[1761862972761,4.08260881,183.25,183.23,2.06165529]
[1761862973065,7.51804777,183.28,183.23,2.06165529]
[1761862973256,4.7624667,183.27,183.23,2.06165529]
[1761862973458,4.0824667,183.26,183.23,2.06165529]
[1761862973670,4.0824667,183.25,183.23,2.06165529]
[1761862974160,4.08438189,183.24,183.23,2.06165529]
[1761862974531,4.08438189,183.25,183.23,2.06165529]
[1761862974731,4.08438189,183.24,183.23,2.06165529]
[1761862974949,4.08438189,183.24,183.23,7.51927559]
[1761862975556,9.78882769,183.2,183.11,7.59098999]
[1761862975765,24.67638189,183.19,183.15,2.06165529]
[1761862975951,8.06341546,183.18,183.15,2.06165529]
[1761862976173,8.06341546,183.17,183.14,2.06165529]
[1761862976450,8.06341546,183.16,183.14,2.06165529]
[1761862976670,8.06341546,183.15,183.14,2.06165529]
[1761862977470,4.08438189,183.15,183.14,28.81395888]
[1761862977668,5.45844224,183.21,183.14,28.81395888]
[1761862977978,7.98135164,183.2,183.18,2.06165529]
[1761862978144,4.08782238,183.19,183.17,2.06165529]
[1761862978464,4.08782238,183.18,183.17,2.06165529]
[1761862978869,4.08782238,183.18,183.17,2.77165529]
[1761862979376,4.08782238,183.18,183.17,6.16940929]
[1761862979671,0.68,183.22,183.17,8.23106458]
[1761862979872,4.08645558,183.21,183.19,2.06165529]
[1761862980083,0.68,183.22,183.19,2.06165529]
[1761862980578,0.68,183.22,183.17,61.7]
[1761862980752,8.47589592,183.22,183.17,69.22102688]
[1761862980939,5.45702592,183.25,183.17,69.22102688]
[1761862980940,7.79589592,183.21,183.2,2.06165529]
[1761862981145,4.08645478,183.21,183.2,2.06165529]
[1761862981341,4.08645478,183.21,183.17,61.7]
[1761862981552,0.68,183.2,183.17,63.76165529]
[1761862981975,0.68,183.2,183.17,69.22106411]
[1761862982546,0.68,183.2,183.17,63.76165529]
[1761862982866,0.68,183.2,183.15,2.06165529]
[1761862983266,0.68,183.2,183.14,67.16022301]
[1761862983267,4.76651391,183.2,183.16,2.77165529]
[1761862983482,0.68,183.22,183.18,2.06165529]
[1761862983789,0.68,183.21,183.18,2.06165529]
[1761862984157,4.76534685,183.21,183.17,2.06165529]
[1761862984482,0.68,183.21,183.17,2.06165529]
[1761862984784,0.68,183.2,183.17,2.06165529]
[1761862985875,0.68,183.2,183.17,7.52096358]
[1761862986278,0.68,183.2,183.18,2.06165529]
[1761862986489,0.68,183.22,183.19,2.06165529]
[1761862986666,4.76566828,183.22,183.19,2.06165529]
[1761862987175,0.68,183.21,183.19,2.06165529]
[1761862987380,0.68,183.21,183.18,2.06165529]
[1761862988188,6.13765298,183.23,183.19,2.06165529]
[1761862988354,4.76532995,183.22,183.19,2.06165529]
[1761862988706,4.08532995,183.22,183.2,2.06165529]
[1761862988888,0.68,183.23,183.2,2.06165529]
[1761862989071,4.76533686,183.23,183.2,2.06165529]
[1761862989270,10.22296601,183.23,183.19,2.06165529]
[1761862989583,0.68,183.23,183.21,2.06165529]
[1761862989961,4.08535881,183.24,183.21,2.06165529]
[1761862990174,4.76535881,183.24,183.21,2.06165529]
[1761862990569,0.68,183.23,183.18,61.7]
[1761862990774,4.76551625,183.23,183.19,2.06165529]
[1761862991295,5.45821734,183.21,183.18,61.7]
[1761862991468,5.45821734,183.21,183.16,17.76612123]
[1761862991469,7.51987263,183.21,183.16,15.70446594]
[1761862991660,0.68,183.2,183.15,2.06165529]
[1761862992070,0.68,183.2,183.16,2.06165529]
[1761862992273,0.68,183.2,183.15,2.06165529]
[1761862992674,2.06165529,183.16,183.11,6.89098999]
[1761862992894,6.14717846,183.15,183.11,6.89098999]
[1761862993207,4.08663643,183.14,183.11,6.89098999]
[1761862993405,9.54723818,183.13,183.11,6.89098999]
[1761862993705,4.08456982,183.12,183.11,6.89098999]
[1761862994469,7.52192192,183.15,183.11,6.89098999]
[1761862994787,2.06165529,183.13,183.11,6.89098999]
[1761862994980,6.14420019,183.12,183.11,6.89098999]
[1761862995491,12.28510014,183.12,183.11,6.89098999]
[1761862996571,16.09345199,183.12,183.11,6.89098999]
[1761862996795,25.88227968,183.12,183.11,6.89098999]
[1761862998579,46.47427968,183.12,183.11,6.89098999]
[1761862999199,42.66592783,183.12,183.11,6.89098999]
[1761863000915,22.65365529,183.05,183.02,0.2]
[1761863001116,2.06165529,183.04,183.02,0.2]
[1761863001320,2.76165529,183.04,183.02,0.2]
[1761863001623,2.76165529,183.03,183.02,0.2]
[1761863002705,38.60606818,183.03,183.02,0.2]
[1761863003022,42.67047161,183.03,183.02,0.2]
[1761863003227,38.60606818,183.03,183.02,0.2]
[1761863003515,39.77549518,183.03,183.02,0.2]
[1761863004098,43.83668527,183.03,183.02,0.2]
[1761863005895,43.83107234,183.03,183.02,0.2]
[1761863006094,39.77549518,183.03,183.02,0.2]
[1761863007496,13.65789699,183.05,183.02,0.2]
[1761863007702,5.46242256,183.07,183.03,3.23108229]
[1761863008021,5.46242256,183.07,183.04,3.23108229]
[1761863008214,5.46242256,183.07,183.03,3.93108229]
[1761863009325,5.46242256,183.07,183.03,3.23108229]
[1761863009513,5.46214604,183.08,183.05,3.23108229]
[1761863009827,5.46214604,183.08,183.04,3.91108229]
[1761863010204,39.70937872,183.08,183.02,0.2]
[1761863010423,0.7,183.07,183.02,3.43108229]
[1761863010720,3.93108229,183.07,183.02,3.43108229]
[1761863011128,6.16268982,183.06,183.02,3.43108229]
[1761863011305,9.39377211,183.06,183.02,0.2]
[1761863011509,6.16268982,183.06,183.02,0.2]
[1761863011702,9.39377211,183.06,183.02,0.2]
[1761863012918,9.39377211,183.06,183.02,0.88]
[1761863015028,5.46243195,183.07,183.03,0.68]
[1761863015234,9.78882769,183.11,183.06,3.23108229]
[1761863015405,4.04867956,183.1,183.06,3.23108229]
[1761863015609,4.74867956,183.1,183.06,3.23108229]
[1761863015925,0.7,183.09,183.04,3.91108229]
[1761863016131,0.7,183.09,183.04,20.3399862]
[1761863016340,0.7,183.09,183.05,0.68]
[1761863017421,5.46209307,183.08,183.04,19.6599862]
[1761863017634,5.46209307,183.08,183.05,0.68]
[1761863018814,20.592,183.11,183.07,3.23108229]
[1761863019021,26.05324855,183.11,183.07,3.23108229]
[1761863019220,26.05324855,183.11,183.08,0.68]
[1761863019533,5.46068042,183.13,183.09,3.23108229]
[1761863019835,4.05195935,183.12,183.09,0.68]
[1761863021731,9.51293763,183.12,183.09,0.68]
[1761863021931,5.46097828,183.12,183.09,0.68]
[1761863022306,29.28369589,183.13,183.09,0.68]
[1761863022506,4.05427037,183.12,183.09,0.68]
[1761863023533,5.46119818,183.11,183.09,0.68]
[1761863023722,5.46119818,183.11,183.07,3.91108229]
[1761863024109,5.46119818,183.11,183.08,0.68]
[1761863024937,3.23108229,183.09,183.06,5.46209307]
[1761863025121,3.23108229,183.07,183.02,0.88]
[1761863025436,3.23108229,183.06,183.02,0.88]
[1761863025618,5.46298825,183.05,183.02,0.88]
[1761863025821,9.39407054,183.05,183.02,0.2]
[1761863026129,3.23108229,183.03,183.02,0.2]
[1761863026639,3.93108229,183.03,183.02,0.2]
[1761863026844,5.46298825,183.05,183.02,0.88]
[1761863028543,5.46298825,183.05,183.02,0.2]
[1761863028730,9.39407054,183.05,183.02,0.2]
[1761863029141,3.93108229,183.04,183.02,0.2]
[1761863029616,19.12045888,183.05,183.02,0.2]
[1761863029941,4.06055743,183.04,183.02,0.88]
[1761863030147,9.52389013,183.04,183.02,0.2]
[1761863030340,5.4633327,183.04,183.02,0.2]
[1761863032119,8.69407054,183.05,183.02,0.2]
[1761863032318,9.39407054,183.05,183.02,0.2]
[1761863032630,4.06467585,183.04,183.02,0.2]
[1761863033041,4.06467585,183.04,183.02,3.43108229]
[1761863033244,5.46119818,183.11,183.03,0.68]
[1761863033424,7.29733559,183.1,183.05,3.23108229]
[1761863033624,4.0662533,183.09,183.05,3.23108229]
[1761863033817,4.0662533,183.08,183.05,3.91108229]
[1761863034018,4.0662533,183.07,183.05,3.91108229]
[1761863034257,6.1618416,183.09,183.05,3.91108229]
[1761863034422,4.06926918,183.08,183.05,3.91108229]
[1761863034750,4.06926918,183.07,183.05,3.91108229]
[1761863034941,6.1618416,183.09,183.05,3.91108229]
[1761863035128,4.06926854,183.08,183.05,3.91108229]
[1761863035332,4.06926854,183.07,183.05,3.91108229]
[1761863035528,4.06926854,183.06,183.05,3.91108229]
[1761863036433,5.46079486,183.13,183.05,9.37407054]
[1761863036651,4.07650888,183.12,183.1,3.23108229]
[1761863036848,4.07650888,183.11,183.1,3.91108229]
[1761863039454,4.07650888,183.11,183.1,0.68]
[1761863039756,4.07650888,183.11,183.1,3.91108229]
[1761863040346,4.07650888,183.11,183.09,3.23108229]
[1761863040542,6.17034072,183.14,183.1,3.89108229]
[1761863040865,4.08119921,183.13,183.1,3.89108229]
[1761863041033,6.17034072,183.14,183.1,3.89108229]
[1761863041034,4.08119921,183.12,183.1,3.89108229]
[1761863041237,4.08119921,183.11,183.1,3.23108229]
[1761863041534,4.08119921,183.11,183.09,3.23108229]
[1761863041736,4.08119921,183.1,183.09,3.89108229]
[1761863042149,4.08119921,183.1,183.09,9.35287703]
[1761863042361,5.46034072,183.14,183.09,9.35287703]
[1761863042659,4.08057232,183.13,183.1,3.89108229]
[1761863042855,4.08057232,183.12,183.1,3.89108229]
[1761863043056,4.08057232,183.11,183.1,3.23108229]
[1761863043354,4.08057232,183.11,183.1,8.69257874]
[1761863043570,4.08057232,183.11,183.1,9.35257874]
[1761863043737,4.08057232,183.11,183.1,14.81291946]
[1761863044147,5.46003459,183.15,183.1,9.35142301]
[1761863044349,4.0791394,183.14,183.11,3.89108229]
[1761863044537,4.0791394,183.13,183.11,3.89108229]
[1761863044738,4.0791394,183.12,183.11,3.89108229]
[1761863045361,4.0791394,183.12,183.1,8.69248392]
[1761863045562,6.17037817,183.14,183.1,8.69248392]
[1761863045754,4.07838797,183.13,183.1,9.35248392]
[1761863045938,4.07838797,183.12,183.1,9.35248392]
[1761863046264,6.17037817,183.14,183.1,3.89108229]
[1761863046460,4.07769914,183.13,183.1,3.89108229]
[1761863046650,4.07769914,183.12,183.1,3.89108229]
[1761863046852,6.17037817,183.14,183.1,3.89108229]
[1761863047055,4.07769914,183.13,183.1,3.89108229]
[1761863047258,4.07769914,183.12,183.1,3.89108229]
[1761863047442,6.17037817,183.14,183.1,3.89108229]
[1761863047645,4.07752702,183.13,183.11,16.42350751]
[1761863047862,4.07752702,183.12,183.11,16.42350751]
[1761863048335,8.01860931,183.12,183.05,9.35404556]
[1761863048650,3.23108229,183.09,183.07,16.42710472]
[1761863048846,7.30860931,183.08,183.02,0.2]